[Event "35th Roquetas Festival 2024"]
[Site "Roquetas de Mar"]
[Date "2024.01.03"]
[Round "3.3"]
[White "Raczek, Krzysztof"]
[Black "Sosa, Tomas"]
[Result "0-1"]
[ECO "A05"]
[WhiteElo "2347"]
[BlackElo "2554"]
[Annotator "TA"]
[PlyCount "114"]
[EventDate "2024.01.02"]
[EventType "swiss"]
[EventCountry "ESP"]
[SourceTitle "playchess.com"]
[Source "ChessBase"]
[SourceQuality "1"]
[TimeControl "5400+30"]

{[%evp 18,114,41,37,43,48,42,43,50,45,52,0,40,0,54,37,35,30,40,39,29,29,29,29,33,47,41,33,40,41,61,17,18,-7,-9,-6,-20,-10,0,0,0,0,0,0,0,-17,-17,-17,-20,-30,-17,-85,-86,-93,-103,-189,-166,-181,-160,-160,-91,-98,-104,-93,-94,-190,-197,-197,-190,-210,-218,-213,-211,-219,-205,-241,-228,-317,-364,-409,-383,-590,-590,-587,-587,-783,-778,-1814,-1814,-1551,-1564,-1742,-1648,-29975,-29976,-29986,-29983,-29987,-29984]} 1. Nf3 {[%emt 0:00:03]} Nf6 {[%emt 0:08:08]} 2. c4 {[%emt 0:00:08]} e6 {[%emt 0:00:05]} 3. e3 {[%emt 0:00:26]} d5 {[%emt 0:00:36]} 4. Nc3 {[%emt 0:00:08]} c5 {[%emt 0:00:24]} 5. cxd5 {[%emt 0:00:47]} exd5 {[%emt 0:00:09]} 6. d4 {[%emt 0:00:45]} Nc6 {[%emt 0:00:04]} 7. Be2 {[%emt 0:01:04]} a6 {[%emt 0:00:05]} 8. O-O {[%emt 0:05:03]} Be7 {[%emt 0:02:18]} 9. b3 {[%emt 0:00:41]} O-O {[%emt 0:00:16]} 10. Bb2 {[%emt 0:00:04]} Re8 {[%emt 0:03:49] D32: Tarrasch Defence: Sidelines and lines without g3.} 11. Rc1 {[%emt 0:00:21]} cxd4 {[%emt 0:00:24]} 12. Nxd4 {[%emt 0:00:10]} Ne5 {[%emt 0:00:07] White is slightly better.} 13. Nf3 {[%emt 0:09:24]} Nc6 {[%emt 0:02:47]} 14. Nd4 {[%emt 0:03:35]} Ne5 $1 {[%emt 0:00:06]} 15. Nf3 {[%emt 0:00:01]} Ng6 {[%emt 0:00:06] [#]} (15... Nc6 $11) 16. Qd2 $146 {[%emt 0:04:04]} ({Predecessor:} 16. Qd3 Be6 17. Rfd1 Qa5 18. Na4 Ne4 19. Bd4 Qd8 20. Nd2 Bf5 21. Nxe4 Bxe4 22. Qc3 Ba3 23. Ra1 Rc8 24. Qe1 {1-0 Andreikin,D (2729)-Chernobay,A (2484) Titled Tuesday intern op 25th Apr Early blitz 2023 (2)}) 16... Be6 {[%emt 0:06:21]} 17. Rfd1 {[%emt 0:01:38]} (17. Na4 {is more complex.} Ne4 18. Qd4 Bf6 19. Qb4) 17... Bd6 {[%emt 0:00:14]} 18. Na4 {[%emt 0:08:12]} Qe7 {[%emt 0:01:54]} 19. h3 {[%emt 0:09:53]} Rad8 {[%emt 0:00:41]} 20. Qd4 {[%emt 0:00:46]} Bf5 {[%emt 0:02:24]} 21. Nh4 {[%emt 0:15:10]} Be4 {[%emt 0:03:41]} 22. Nxg6 {[%emt 0:00:24]} fxg6 {[%emt 0:03:47]} 23. Nc5 {[%emt 0:04:17]} Qf7 {[%emt 0:02:38]} 24. Nxe4 {[%emt 0:04:33]} (24. Qa4 $5 {[%cal Rb2f6]}) 24... Nxe4 {[%emt 0:01:50]} 25. Bf3 {[%emt 0:00:37]} (25. Qxd5 Bh2+ 26. Kxh2 Rxd5 $17) (25. f4 {simplifies} Kh8 26. Qb6 g5 27. Bf3) 25... Be5 {[%emt 0:02:47]} 26. Qxe5 {[%emt 0:00:16]} Rxe5 {[%emt 0:00:01]} 27. Bxe5 {[%emt 0:00:02] Threatens to win with Bxe4. This pair of bishops is nice.} Qe7 {[%emt 0:01:35]} 28. Bb2 {[%emt 0:06:05]} h5 {[%emt 0:01:26]} 29. Rd4 {[%emt 0:00:58]} Nf6 {[%emt 0:03:11]} 30. Rd2 {[%emt 0:03:00]} Kh7 {[%emt 0:02:07]} 31. Rdc2 {[%emt 0:00:38]} Ne4 {[%emt 0:01:01][%cal Bf6e4,Be4g5,Bg5e6][%mdl 32]} 32. Bd4 {[%emt 0:03:24]} Ng5 {[%emt 0:00:53]} 33. Be2 {[%emt 0:01:29]} Ne6 {[%emt 0:00:12]} 34. Bb6 {[%emt 0:01:31]} (34. Rd1 $11) 34... Rd6 $17 {[%emt 0:02:12]} 35. Ba5 {[%emt 0:02:22] And now Bb4 would win.} Rd7 {[%emt 0:00:53] ...d4 would be deadly.} 36. Rd1 {[%emt 0:03:47]} (36. Bc3 $17) 36... d4 $19 {[%emt 0:01:40]} 37. Rcd2 {[%emt 0:00:35]} Qc5 {[%emt 0:00:55][%csl LRa5,LRe3] Dodges Bb6} 38. b4 {[%emt 0:01:27]} Qc3 {[%emt 0:01:50]} (38... Qa7 $142 {White must now prevent ...b6.} 39. b5 (39. Bc4 $2 Rd6 $19) 39... Qc5) 39. Bb6 $17 {[%emt 0:02:47]} Qxb4 {[%emt 0:05:52]} 40. Bxd4 {[%emt 0:00:12]} Nxd4 {[%emt 0:01:25]} 41. Rxd4 {[%emt 0:01:47]} (41. exd4 $17 b5 42. d5) 41... Rxd4 $19 {[%emt 0:00:05]} 42. exd4 $17 {[%emt 0:00:01][%mdl 4096] Endgame KQ-KRB} Qb2 $1 {[%emt 0:04:13][%csl LRa2,LRe2]} 43. Bf3 {[%emt 0:00:57] [#]} Kg8 $1 {[%emt 0:03:11]} (43... Qxa2 44. d5 Qa5 45. d6 $16) 44. d5 {[%emt 0:00:45] aiming for d6.} Kf8 {[%emt 0:00:36]} (44... Qxa2 $2 45. d6 Qa5 46. d7 $18) 45. d6 {[%emt 0:03:36]} Ke8 {[%emt 0:00:38]} (45... Qxa2 $2 46. d7 (46. Bxb7 Qc2 $17) 46... Qa5 47. d8=Q+ $18) 46. g4 {[%emt 0:00:55]} Qxa2 {[%emt 0:10:38]} 47. gxh5 {[%emt 0:03:12] [#]} Qf7 {[%emt 0:01:32][%csl LRf3,LRh5]} 48. d7+ {[%emt 0:01:52]} Kd8 {[%emt 0:00:02]} 49. Rd3 {[%emt 0:00:37]} (49. Bd5 {was necessary.} Qf5 50. Bxb7) 49... gxh5 $19 {[%emt 0:00:28][%cal Bg6h5,Bh5h4][%mdl 32] Strongly threatening ...Qg6+.} 50. Be4 {[%emt 0:00:28] Inhibits Qg6+.} Qe6 {[%emt 0:00:38]} 51. f3 {[%emt 0:00:30]} Qxh3 {[%emt 0:00:54]} 52. Bxb7 {[%emt 0:00:26]} Qg3+ {[%emt 0:01:03]} 53. Kf1 {[%emt 0:00:08]} h4 {[%emt 0:00:23] ...h3 is the strong threat.} 54. Bc6 {[%emt 0:00:43]} Qf4 {[%emt 0:01:22] ( -> ...Qc1+)} ({Stronger than} 54... h3 55. Re3 Kc7 56. Re8 Qg2+ 57. Ke1 Qg3+ 58. Kf1 Qg2+ 59. Ke1 Qg3+ 60. Kf1 $11) 55. Kg2 {[%emt 0:00:44]} Qg5+ {[%emt 0:00:01] Black mates.} 56. Kh2 {[%emt 0:00:13]} Qg3+ {[%emt 0:00:05]} 57. Kh1 {[%emt 0:00:02]} Qe1+ {[%emt 0:00:07] Weighted Error Value: White=0.57/Black=0.05 (flawless)} 0-1

[Event "35th Roquetas Festival 2024"]
[Site "Roquetas de Mar"]
[Date "2024.01.03"]
[Round "3.4"]
[White "Stremavicius, Titas"]
[Black "Vergara Anton, Diego"]
[Result "1/2-1/2"]
[ECO "D37"]
[WhiteElo "2543"]
[BlackElo "2346"]
[Annotator "TA"]
[PlyCount "149"]
[EventDate "2024.01.02"]
[EventType "swiss"]
[EventCountry "ESP"]
[SourceTitle "playchess.com"]
[Source "ChessBase"]
[SourceQuality "1"]
[TimeControl "5400+30"]

{[%evp 13,149,-4,0,0,29,24,39,27,43,33,36,38,36,39,46,20,18,6,12,0,0,0,9,0,33,28,33,26,40,23,18,0,17,0,0,0,0,-28,-23,-22,-22,-24,0,-22,-16,-35,0,0,0,0,0,0,0,0,0,0,0,0,0,0,0,0,0,0,0,0,0,0,0,0,0,0,0,0,0,0,0,0,0,0,0,0,0,0,0,0,0,0,0,0,0,0,0,0,0,0,0,0,0,0,0,0,0,-7,0,0,0,0,0,0,34,54,37,0,136,135,402,0,0,0,0,0,2985,1767,12838,0,0,0,0,0,0,0,0,0,0,0,0,0]} 1. d4 {[%emt 0:00:05]} d5 {[%emt 0:00:06]} 2. c4 {[%emt 0:00:08]} e6 {[%emt 0:00:05]} 3. Nc3 {[%emt 0:00:07]} Nf6 {[%emt 0:00:05]} 4. Nf3 {[%emt 0:00:09]} Be7 {[%emt 0:00:25]} 5. cxd5 {[%emt 0:00:17]} exd5 {[%emt 0:00:20]} 6. Bf4 {[%emt 0:00:12]} c6 {[%emt 0:00:39]} 7. e3 {[%emt 0:00:14]} Bf5 {[%emt 0:01:27]} 8. Nh4 $1 {[%emt 0:00:21][%mdl 4] is now more promising than 8.Bd3. D35: Queen's Gambit Declined: Exchange Variation.} Bg6 {[%emt 0:01:08]} (8... Bg4 $5 {[%cal Rg4d1]} 9. Be2 Bxe2 10. Qxe2 O-O $11) 9. Nxg6 {[%emt 0:00:50]} hxg6 {[%emt 0:00:05]} 10. h4 {[%emt 0:00:56] [#] White is slightly better.} Bd6 $146 {[%emt 0:03:33]} ({Predecessor:} 10... Nbd7 11. Bd3 Nf8 12. Qf3 Ne6 13. O-O-O Nxf4 14. Qxf4 Qd6 15. Qf3 O-O-O 16. g4 Rdf8 {0-1 Harikrishna,P (2711)-Radjabov,T (2745) Tata Steel India rapid 2023 (4)}) 11. Qf3 {[%emt 0:01:00]} Bxf4 {[%emt 0:03:08]} 12. Qxf4 {[%emt 0:00:09]} Nbd7 {[%emt 0:00:38][%cal Bb8d7,Bd7f8,Bf8e6][%mdl 32]} 13. g4 {[%emt 0:00:47]} Nf8 {[%emt 0:07:26]} 14. O-O-O {[%emt 0:07:32]} Ne6 {[%emt 0:03:02]} 15. Qf3 {[%emt 0:00:29]} Qe7 {[%emt 0:01:54]} 16. Kb1 {[%emt 0:10:14]} O-O-O {[%emt 0:03:23]} 17. Bd3 {[%emt 0:00:12]} Ne8 {[%emt 0:05:19]} 18. h5 {[%emt 0:09:34]} g5 {[%emt 0:06:21]} 19. Ne2 {[%emt 0:05:57]} Nd6 {[%emt 0:02:49]} 20. Ng3 {[%emt 0:00:17]} Kb8 {[%emt 0:01:42]} 21. Qe2 {[%emt 0:02:18]} Qf6 {[%emt 0:04:07]} 22. Rc1 {[%emt 0:07:17]} Rc8 {[%emt 0:01:45]} 23. Nf5 {[%emt 0:05:26]} Nxf5 {[%emt 0:01:42]} 24. gxf5 {[%emt 0:03:03]} Nc7 {[%emt 0:01:16]} 25. Qg4 {[%emt 0:02:31]} Qe7 {[%emt 0:02:12]} 26. Rcg1 {[%emt 0:00:11]} f6 {[%emt 0:00:09]} 27. Rh3 {[%emt 0:00:09]} Ne8 {[%emt 0:02:12]} 28. f4 {[%emt 0:02:44]} gxf4 {[%emt 0:00:23]} 29. Qxf4+ {[%emt 0:00:09]} Qc7 {[%emt 0:00:52]} 30. Qxc7+ {[%emt 0:07:34]} Rxc7 {[%emt 0:00:57]} 31. Rg6 {[%emt 0:00:08]} Re7 {[%emt 0:01:49]} 32. Kc2 {[%emt 0:00:08]} Kc7 {[%emt 0:01:16]} 33. Kd2 {[%emt 0:00:31]} a5 {[%emt 0:01:45]} 34. b3 {[%emt 0:01:38]} Kd7 {[%emt 0:01:06]} 35. a4 {[%emt 0:02:42]} Kd6 {[%emt 0:03:40]} 36. Ke2 {[%emt 0:02:12]} Kd7 {[%emt 0:04:05]} 37. Kf3 {[%emt 0:00:19]} Kd6 {[%emt 0:00:14]} 38. Kf4 {[%emt 0:00:29]} Kd7 {[%emt 0:00:08]} 39. Rh1 {[%emt 0:01:21]} Rh7 {[%emt 0:01:04]} 40. h6 {[%emt 0:05:29]} Rxh6 {[%emt 0:00:23]} 41. Rhxh6 {[%emt 0:00:23]} gxh6 {[%emt 0:00:02]} 42. Rxh6 $11 {[%emt 0:00:24][%mdl 4096] Endgame KRB-KRN} Kc7 {[%emt 0:06:20]} 43. Bf1 {[%emt 0:02:34]} Rg7 {[%emt 0:02:15]} 44. Be2 {[%emt 0:00:28]} Rg2 {[%emt 0:03:38]} 45. Rh7+ {[%emt 0:05:14]} Rg7 {[%emt 0:02:01]} 46. Rh6 {[%emt 0:00:39]} Rg2 {[%emt 0:00:11]} 47. Bf3 {[%emt 0:00:10]} Rg1 {[%emt 0:02:42]} 48. Rh7+ {[%emt 0:01:21]} Rg7 {[%emt 0:00:47]} 49. Rh8 {[%emt 0:00:06]} Nd6 {[%emt 0:02:31]} 50. Rh6 {[%emt 0:01:02]} Rf7 {[%emt 0:00:19]} 51. Bh5 {[%emt 0:00:07]} Rf8 {[%emt 0:00:04]} 52. Rh7+ {[%emt 0:00:13]} Kb6 {[%emt 0:02:22]} 53. Bg6 {[%emt 0:03:30]} Ne4 {[%emt 0:00:44]} 54. Kg4 {[%emt 0:00:14]} Rd8 {[%emt 0:02:15]} 55. Kf4 {[%emt 0:06:50]} Nd2 {[%emt 0:01:16]} 56. Rh2 {[%emt 0:00:14]} Ne4 {[%emt 0:00:10]} 57. Rh6 {[%emt 0:01:40]} Rg8 {[%emt 0:02:31]} 58. Rh7 {[%emt 0:00:12]} Rd8 {[%emt 0:00:49]} 59. Bh5 {[%emt 0:01:41]} Rg8 {[%emt 0:03:54]} 60. Bf3 {[%emt 0:03:23]} Ng5 {[%emt 0:00:08]} 61. Rh6 {[%emt 0:00:14][%cal Of3d5]} Nxf3 {[%emt 0:02:35]} 62. Kxf3 {[%emt 0:00:02] KR-KR} Rf8 {[%emt 0:00:01]} 63. Kg4 {[%emt 0:01:10]} Kc7 {[%emt 0:02:19] [#]} (63... c5 $1 $11 {keeps the balance.}) 64. Kh5 $1 $16 {[%emt 0:03:13]} Re8 $2 {[%emt 0:01:32][%mdl 8192]} (64... c5 $16) 65. Kg6 $2 {[%emt 0:00:01]} (65. Rxf6 $18 b6 66. Rf7+ Kd6 67. Rb7) 65... Rxe3 $11 {[%emt 0:00:08]} 66. Kxf6 {[%emt 0:00:03]} Rxb3 {[%emt 0:00:07]} 67. Kg7 {[%emt 0:00:04] Strongly threatening f6.} Rf3 $2 {[%emt 0:04:42][%mdl 8192]} (67... Rg3+ $11 68. Rg6 Rf3) 68. f6 $18 {[%emt 0:00:05]} Kd6 {[%emt 0:00:44]} 69. Rg6 $2 {[%emt 0:00:36]} ({White should try} 69. Kf8 $18 b6 70. f7+ Kd7 71. Rh7) 69... Ke6 $11 {[%emt 0:00:41] The position is equal.} 70. Rg1 {[%emt 0:02:34] [#] And now Re1+ would win.} b5 $1 {[%emt 0:00:19]} (70... Rxf6 71. Re1+ Kf5 72. Re5+ Kg4 73. Kxf6 $18) 71. Re1+ {[%emt 0:00:07]} Kd7 {[%emt 0:00:08]} 72. f7 {[%emt 0:00:32]} Rg3+ {[%emt 0:00:37]} 73. Kf6 {[%emt 0:00:21] White wants to mate with Rf1.} Rf3+ {[%emt 0:00:06]} 74. Kg7 {[%emt 0:00:24]} Rg3+ {[%emt 0:00:01]} 75. Kf6 {[%emt 0:00:08] Weighted Error Value: White=0.03 (flawless) /Black=0.04 (flawless)} 1/2-1/2

[Event "35th Roquetas Festival 2024"]
[Site "Roquetas de Mar"]
[Date "2024.01.03"]
[Round "3.5"]
[White "Luque Saiz, Andres"]
[Black "Fernandez, Daniel Howard"]
[Result "0-1"]
[ECO "B90"]
[WhiteElo "2328"]
[BlackElo "2525"]
[Annotator "TA"]
[PlyCount "82"]
[EventDate "2024.01.02"]
[EventType "swiss"]
[EventCountry "ESP"]
[SourceTitle "playchess.com"]
[Source "ChessBase"]
[SourceQuality "1"]
[TimeControl "5400+30"]

{[%evp 11,82,19,41,21,36,35,40,33,25,41,47,50,48,47,60,31,35,40,52,29,48,47,46,0,0,-42,6,0,0,1,39,34,41,32,56,55,54,6,4,0,0,-179,-179,-187,-184,-175,-27,-31,-30,-39,-37,-34,-40,-39,-39,-39,-31,-115,-116,-264,-261,-260,-255,-257,-249,-249,-225,-239,-203,-29983,-29983,-29995,-504]} 1. e4 {[%emt 0:00:02] Ramirez Alvarez,Alejandro} c5 {[%emt 0:14:24]} 2. Nf3 {[%emt 0:02:06]} d6 {[%emt 0:02:24]} 3. d4 {[%emt 0:00:17]} cxd4 {[%emt 0:00:04]} 4. Nxd4 {[%emt 0:00:06]} Nf6 {[%emt 0:00:08]} 5. Nc3 {[%emt 0:00:06]} a6 {[%emt 0:01:13]} 6. h3 {[%emt 0:01:45]} g6 {[%emt 0:08:00]} 7. g3 {[%emt 0:02:49] [#] B90: Sicilian Najdorf: Unusual White 6th moves, 6 Be3 Ng4 and 6 Be3 e5.} b6 $146 {[%emt 0:05:35]} ({Predecessor:} 7... Nc6 8. Be3 Bg7 9. Bg2 O-O 10. O-O Nd7 11. b3 Nxd4 12. Bxd4 Bxd4 13. Qxd4 b6 14. Nd5 Bb7 {½-½ Carlsen,M (2832)-Nakamura,H (2785) Norway Chess 5th 2017 (3)}) 8. Bg2 {[%emt 0:01:51][%cal Oe4e5]} Bb7 {[%emt 0:00:02]} 9. O-O {[%emt 0:01:24] White is slightly better.} Nbd7 {[%emt 0:00:01]} 10. Re1 {[%emt 0:14:26][%cal Oe4e5]} e5 {[%emt 0:04:59]} 11. Nb3 {[%emt 0:01:01]} Qc7 {[%emt 0:01:26]} 12. a4 {[%emt 0:02:09]} Rc8 {[%emt 0:00:52]} 13. Nd2 {[%emt 0:04:02]} Bg7 {[%emt 0:02:07]} 14. Nf1 {[%emt 0:03:46]} O-O {[%emt 0:00:04]} 15. Ne3 {[%emt 0:03:52]} Qb8 {[%emt 0:00:02]} 16. Ng4 {[%emt 0:09:05]} Ne8 {[%emt 0:05:20]} 17. Nh6+ {[%emt 0:11:27]} (17. Bg5 $14) 17... Kh8 $11 {[%emt 0:00:45]} 18. Nd5 {[%emt 0:00:23]} Nef6 {[%emt 0:01:00]} (18... Qa8 $15 {is superior.}) 19. Nc3 {[%emt 0:07:35]} Nc5 {[%emt 0:07:59]} 20. Ng4 {[%emt 0:05:06][%cal Bh6g4,Bg4e3,Be3d5][%mdl 32]} Ng8 {[%emt 0:02:04]} 21. Ne3 {[%emt 0:01:40]} f5 {[%emt 0:03:26][%cal Rb7e4]} 22. Ned5 {[%emt 0:02:56]} b5 {[%emt 0:11:04]} 23. axb5 {[%emt 0:01:37]} axb5 {[%emt 0:00:02]} 24. b4 {[%emt 0:03:28]} (24. exf5 $14 b4 25. Na4 (25. Nxb4 $2 Bxg2 {[%mdl 64] Discovered Attack} 26. Kxg2 Qxb4 $17)) 24... Nxe4 {[%emt 0:04:12]} 25. Bxe4 {[%emt 0:08:09]} fxe4 {[%emt 0:00:03]} 26. Nxe4 {[%emt 0:00:10] A dynamic duo of knights.} (26. Ra5 $11 {and White stays safe.}) 26... Rc4 $19 {[%emt 0:00:29]} 27. c3 {[%emt 0:01:34] [#] Wards off Rd4} Rxe4 $1 {[%emt 0:10:23][%mdl 512]} 28. Rxe4 {[%emt 0:00:15]} Qc8 {[%emt 0:00:02]} (28... Ne7 $19 29. Nxe7 (29. c4 $2 bxc4 30. Nc3 d5 $19) 29... Bxe4) 29. Ra7 $11 {[%emt 0:02:21]} Bxd5 $1 {[%emt 0:00:33][%mdl 64] Remove Defender} 30. Qxd5 {[%emt 0:00:15]} Nf6 {[%emt 0:00:02] Chess con chili.} (30... Qxh3 $2 31. Qb7 (31. Qxd6 Rxf2 {[%mdl 64] Decoy} 32. Kxf2 Qh2+ 33. Ke3 Qxg3+ 34. Ke2 Qg2+ 35. Kd3 Qf1+ 36. Kc2 Qf2+ 37. Kb3 Qxa7 $18) 31... Bf6 32. Rh4 $18) 31. Qd3 {[%emt 0:00:48] Rh4 would be deadly.} Nxe4 {[%emt 0:00:04][%mdl 64] Discovered Attack} (31... Qxh3 $2 32. Rh4 Qf5 33. Qxf5 (33. Qxb5 Ng4 $16) (33. Qxd6 g5 $16) 33... gxf5 34. c4 bxc4 35. Rxc4 $18) 32. Qxe4 {[%emt 0:00:05] Threatens to win with Be3.} Qxc3 {[%emt 0:00:11]} 33. Bg5 {[%emt 0:05:02]} d5 {[%emt 0:02:58]} 34. Qe2 {[%emt 0:01:00] [#]} ({White should try} 34. Qe3 $1 $15 Qxe3 35. Bxe3) 34... e4 $1 $17 {[%emt 0:00:27] Hoping for ...Bd4.} ({Reject} 34... Qxb4 $6 35. Bh6 Qb1+ 36. Kh2 Bxh6 37. Qxe5+ Kg8 38. Qe6+ Kh8 39. Qe5+ Kg8 40. Qe6+ Kh8 41. Qe5+ $11) 35. Be7 {[%emt 0:03:42] Loses the game.} (35. Bd2 $17 Qb2 36. Qe3) 35... Bd4 $1 $19 {[%emt 0:00:46][%csl LRa7,LRf2,LRg3]} 36. Bxf8 {[%emt 0:00:33]} Qxg3+ $40 {[%emt 0:00:13][%mdl 128] Black wants a kill.} ({Not} 36... Bxa7 37. Kg2 $17) 37. Kf1 {[%emt 0:01:06]} Qxh3+ {[%emt 0:01:38]} 38. Kg1 {[%emt 0:00:06]} Bxa7 {[%emt 0:02:55]} 39. Qb2+ {[%emt 0:01:05]} d4 {[%emt 0:00:02] aiming for ...Qg4+.} 40. Qc2 $2 {[%emt 0:00:44]} (40. Bg7+ $19 Kg8 41. Qa2+ Kxg7 42. Qxa7+ Kh6 43. Qxd4) 40... Bb8 {[%emt 0:02:40]} 41. Qa2 {[%emt 0:00:34]} Qh2+ {[%emt 0:01:06] A cool game by Fernandez.   Weighted Error Value: White=0.33/Black=0.11 (very precise)} (41... Bh2+ $142 42. Kh1 Bf4+ 43. Kg1 Qh2+ 44. Kf1 Qh1+ 45. Ke2 d3#) 0-1